fUSD/lending_fUSD_20250911
["ID","MTS","AMOUNT","RATE_DAILY","PERIOD"]
[384963031,1757634664262,-400.0,0.00027671,7]
[384963032,1757634664272,-400.0,0.00027671,7]
[384963033,1757634664282,-400.0,0.00027671,7]
[384963034,1757634664292,-1166.16,0.00027671,7]
[384963035,1757634664302,-928.84,0.00027671,7]
[384963036,1757634664312,-400.0,0.00027671,7]
[384963037,1757634664322,-400.0,0.00027671,7]
[384963038,1757634664332,-1003.69,0.00027671,7]
[384963039,1757634664342,-400.0,0.00027671,7]
[384963040,1757634664352,-400.0,0.00027671,7]
[384963041,1757634664361,-400.0,0.00027671,7]
[384963042,1757634664372,-400.0,0.00027671,7]
[384963043,1757634664381,-1059.22,0.00027671,7]
[384963044,1757634664391,-400.0,0.00027671,7]
[384963045,1757634664400,-400.0,0.00027671,7]
[384963046,1757634664410,-400.0,0.00027671,7]
[384963047,1757634664419,-588.3,0.00027671,7]
[384963048,1757634664429,-868.19,0.00027671,7]
[384963049,1757634664439,-151.0,0.00027671,7]
[384963050,1757634664448,-151.0,0.00027671,7]
[384963051,1757634664457,-534.74,0.00027671,7]
[384963052,1757634664467,-465.54,0.00027671,7]
[384963053,1757634664477,-400.0,0.00027671,7]
[384963054,1757634664486,-1076.03,0.00027671,7]
[384963055,1757634664495,-750.79,0.00027671,7]
[384963056,1757634664505,-400.0,0.00027671,7]
[384963057,1757634664514,-400.0,0.00027671,7]
[384963058,1757634664524,-400.0,0.00027671,7]
[384963059,1757634664533,-961.4,0.00027671,7]
[384963060,1757634664543,-480.92,0.00027671,7]
[384963061,1757634664552,-883.07,0.00027671,7]
[384963062,1757634664562,-417.52,0.00027671,7]
[384963063,1757634664571,-1356.65,0.00027671,7]
[384963064,1757634664581,-400.0,0.00027671,7]
[384963065,1757634664590,-400.0,0.00027671,7]
[384963067,1757634664600,-400.0,0.00027671,7]
[384963068,1757634664609,-400.0,0.00027671,7]
[384963069,1757634664618,-400.0,0.00027671,7]
[384963070,1757634664628,-870.97,0.00027671,7]
[384963071,1757634664749,-400.0,0.00027671,7]
[384963072,1757634664759,-400.0,0.00027671,7]
[384963073,1757634664770,-400.0,0.00027671,7]
[384963074,1757634664779,-729.65,0.00027671,7]
[384963075,1757634664788,-888.19,0.00027671,7]
[384963076,1757634664798,-675.33,0.00027671,7]
[384963077,1757634664807,-1080.33,0.00027671,7]
[384963078,1757634664816,-400.0,0.00027671,7]
[384963079,1757634664825,-400.0,0.00027671,7]
[384963080,1757634664834,-400.0,0.00027671,7]
[384963081,1757634664843,-400.0,0.00027671,7]
[384963082,1757634664852,-400.0,0.00027671,7]
[384963083,1757634664861,-400.0,0.00027671,7]
[384963084,1757634664871,-1474.26,0.00027671,7]
[384963085,1757634664880,-400.0,0.00027671,7]
[384963086,1757634664889,-400.0,0.00027671,7]
[384963087,1757634664898,-400.0,0.00027671,7]
[384963088,1757634664907,-1216.97,0.00027671,7]
[384963089,1757634664917,-400.0,0.00027671,7]
[384963090,1757634664927,-293.638977,0.00027671,7]
[384963091,1757634664936,-465.65,0.00027671,7]
[384963092,1757634664945,-400.0,0.00027671,7]
[384963093,1757634664954,-400.0,0.00027671,7]
[384963094,1757634664963,-400.0,0.00027671,7]
[384963095,1757634664973,-400.0,0.00027671,7]
[384963096,1757634664982,-400.0,0.00027671,7]
[384963097,1757634664991,-809.82,0.00027671,7]
[384963098,1757634665000,-400.0,0.00027671,7]
[384963099,1757634665009,-400.04,0.00027671,7]
[384963100,1757634665018,-581.59,0.00027671,7]
[384963101,1757634665027,-479.8,0.00027671,7]
[384963102,1757634665037,-400.0,0.00027671,7]
[384963103,1757634665046,-1397.29,0.00027671,7]
[384963104,1757634665055,-590.47,0.00027671,7]
[384963105,1757634665065,-400.0,0.00027671,7]
[384963106,1757634665074,-711.68,0.00027671,7]
[384963107,1757634665083,-400.0,0.00027671,7]
[384963108,1757634665092,-400.0,0.00027671,7]
[384963109,1757634665101,-1041.39,0.00027671,7]
[384963110,1757634665111,-418.67428083,0.00027671,7]
[384963111,1757634665120,-608.31,0.00027671,7]
[384963112,1757634665130,-727.08,0.00027671,7]
[384963113,1757634665142,-1086.16,0.00027671,7]
[384963114,1757634665151,-400.0,0.00027671,7]
[384963115,1757634665161,-1026.18,0.00027671,7]
[384963116,1757634665170,-400.0,0.00027671,7]
[384963117,1757634665179,-400.0,0.00027671,7]
[384963118,1757634665188,-400.0,0.00027671,7]
[384963119,1757634665198,-616.36,0.00027671,7]
[384963120,1757634665207,-815.68,0.00027671,7]
[384963121,1757634665217,-409.41282707,0.00027671,7]
[384963122,1757634665226,-400.0,0.00027671,7]
[384963123,1757634665236,-400.0,0.00027671,7]
[384963124,1757634665245,-536.25,0.00027671,7]
[384963125,1757634665255,-547.5,0.00027671,7]
[384963126,1757634665264,-400.0,0.00027671,7]
[384963127,1757634665273,-962.12,0.00027671,7]
[384963128,1757634665282,-400.0,0.00027671,7]
[384963129,1757634665293,-400.0,0.00027671,7]
[384963130,1757634665302,-400.0,0.00027671,7]
[384963131,1757634665311,-847.97,0.00027671,7]
[384963132,1757634665320,-814.92,0.00027671,7]
[384963133,1757634665331,-400.0,0.00027671,7]
[384963134,1757634665340,-400.0,0.00027671,7]
[384963135,1757634665349,-892.89,0.00027671,7]
[384963136,1757634665358,-1207.36,0.00027671,7]
[384963137,1757634665369,-1005.23,0.00027671,7]
[384963138,1757634665378,-400.0,0.00027671,7]
[384963139,1757634665387,-400.0,0.00027671,7]
[384963140,1757634665395,-400.0,0.00027671,7]
[384963141,1757634665406,-730.46,0.00027671,7]
[384963142,1757634665415,-717.05,0.00027671,7]
[384963143,1757634665425,-400.0,0.00027671,7]
[384963144,1757634665434,-913.69,0.00027671,7]
[384963145,1757634665443,-599.88,0.00027671,7]
[384963146,1757634665453,-699.92,0.00027671,7]
[384963147,1757634665462,-400.0,0.00027671,7]
[384963148,1757634665471,-296.34277607,0.00027671,7]
[384963149,1757634665480,-400.0,0.00027671,7]
[384963150,1757634665489,-400.0,0.00027671,7]
[384963151,1757634665498,-400.0,0.00027671,7]
[384963152,1757634665507,-400.0,0.00027671,7]
[384963153,1757634665517,-400.0,0.00027671,7]
[384963154,1757634665526,-887.12,0.00027671,7]
[384963155,1757634665535,-1096.2,0.00027671,7]
[384963156,1757634665545,-992.48,0.00027671,7]
[384963157,1757634665554,-400.0,0.00027671,7]
[384963158,1757634665564,-400.0,0.00027671,7]
[384963159,1757634665573,-400.0,0.00027671,7]
[384963160,1757634665583,-420.06,0.00027671,7]
[384963161,1757634665592,-916.15,0.00027671,7]
[384963162,1757634665603,-400.0,0.00027671,7]
[384963163,1757634665612,-785.35,0.00027671,7]
[384963164,1757634665621,-827.49,0.00027671,7]
[384963165,1757634665630,-780.94,0.00027671,7]
[384963166,1757634665639,-400.0,0.00027671,7]
[384963167,1757634665650,-401.91239038,0.00027671,7]
[384963168,1757634665659,-400.0,0.00027671,7]
[384963169,1757634665668,-400.0,0.00027671,7]
[384963170,1757634665677,-400.0,0.00027671,7]
[384963171,1757634665687,-469.15,0.00027671,7]
[384963172,1757634665695,-400.0,0.00027671,7]
[384963173,1757634665704,-400.0,0.00027671,7]
[384963174,1757634665714,-400.0,0.00027671,7]
[384963175,1757634665722,-960.81,0.00027671,7]
[384963176,1757634665731,-1036.83,0.00027671,7]
[384963177,1757634665741,-503.46928506,0.00027671,7]
[384963178,1757634665749,-400.0,0.00027671,7]
[384963179,1757634665758,-523.52,0.00027671,7]
[384963180,1757634665767,-853.94,0.00027671,7]
[384963181,1757634665776,-151.0,0.00027671,7]
[384963182,1757634665785,-174.033614,0.00027671,7]
[384963183,1757634665794,-400.0,0.00027671,7]
[384963184,1757634665803,-1079.02,0.00027671,7]
[384963185,1757634665812,-402.33635171,0.00027671,7]
[384963186,1757634665821,-409.96,0.00027671,7]
[384963187,1757634665831,-400.0,0.00027671,7]
[384963188,1757634665840,-400.0,0.00027671,7]
[384963189,1757634665849,-400.0,0.00027671,7]
[384963190,1757634665858,-707.65,0.00027671,7]
[384963191,1757634665868,-1526.8,0.00027671,7]
[384963192,1757634665877,-400.0,0.00027671,7]
[384963193,1757634665886,-923.17,0.00027671,7]
[384963194,1757634665895,-1509.75,0.00027671,7]
[384963195,1757634665904,-400.0,0.00027671,7]
[384963196,1757634665914,-400.0,0.00027671,7]
[384963197,1757634665923,-400.0,0.00027671,7]
[384963198,1757634665933,-400.0,0.00027671,7]
[384963199,1757634665943,-400.0,0.00027671,7]
[384963200,1757634665952,-400.0,0.00027671,7]
[384963201,1757634665962,-400.0,0.00027671,7]
[384963202,1757634665971,-865.22,0.00027671,7]
[384963203,1757634665980,-501.72,0.00027671,7]
[384963204,1757634665990,-1060.05,0.00027671,7]
[384963205,1757634665999,-400.0,0.00027671,7]
[384963206,1757634666008,-400.0,0.00027671,7]
[384963207,1757634666017,-421.9,0.00027671,7]
[384963208,1757634666027,-492.6,0.00027671,7]
[384963209,1757634666036,-1010.27,0.00027671,7]
[384963210,1757634666044,-400.0,0.00027671,7]
[384963211,1757634666055,-400.0,0.00027671,7]
[384963212,1757634666064,-400.0,0.00027671,7]
[384963213,1757634666073,-1028.46,0.00027671,7]
[384963214,1757634666082,-938.37,0.00027671,7]
[384963215,1757634666091,-684.85,0.00027671,7]
[384963216,1757634666102,-400.0,0.00027671,7]
[384963217,1757634666112,-626.76,0.00027671,7]
[384963218,1757634666121,-1160.39,0.00027671,7]
[384963219,1757634666130,-400.0,0.00027671,7]
[384963220,1757634666139,-400.0,0.00027671,7]
[384963221,1757634666148,-400.0,0.00027671,7]
[384963222,1757634666157,-747.73,0.00027671,7]
[384963223,1757634666166,-400.0,0.00027671,7]
[384963224,1757634666175,-730.97,0.00027671,7]
[384963225,1757634666184,-1022.35,0.00027671,7]
[384963226,1757634666193,-400.0,0.00027671,7]
[384963227,1757634666202,-400.0,0.00027671,7]
[384963228,1757634666211,-400.0,0.00027671,7]
[384963229,1757634666222,-817.28,0.00027671,7]
[384963230,1757634666231,-400.0,0.00027671,7]
[384963231,1757634666240,-462.11,0.00027671,7]
[384963232,1757634666249,-400.0,0.00027671,7]
[384963233,1757634666258,-400.0,0.00027671,7]
[384963234,1757634666267,-400.0,0.00027671,7]
[384963235,1757634666277,-400.0,0.00027671,7]
[384963236,1757634666287,-452.37,0.00027671,7]
[384963237,1757634666300,-871.42,0.00027671,7]
[384963238,1757634666309,-407.79350876,0.00027671,7]
[384963239,1757634666318,-561.48,0.00027671,7]
[384963240,1757634666328,-400.0,0.00027671,7]
[384963241,1757634666340,-400.0,0.00027671,7]
[384963242,1757634666349,-998.49,0.00027671,7]
[384963243,1757634666358,-400.0,0.00027671,7]
[384963244,1757634666370,-400.0,0.00027671,7]
[384963245,1757634666380,-400.0,0.00027671,7]
[384963246,1757634666390,-432.3,0.00027671,7]
[384963247,1757634666399,-400.0,0.00027671,7]
[384963248,1757634666408,-400.0,0.00027671,7]
[384963249,1757634666418,-1019.55,0.00027671,7]
[384963250,1757634666427,-400.0,0.00027671,7]
[384963251,1757634666436,-400.0,0.00027671,7]
[384963252,1757634666445,-400.0,0.00027671,7]
[384963253,1757634666455,-863.69,0.00027671,7]
[384963254,1757634666464,-400.0,0.00027671,7]
[384963255,1757634666473,-956.25,0.00027671,7]
[384963256,1757634666483,-471.26,0.00027671,7]
[384963257,1757634666492,-400.0,0.00027671,7]
[384963258,1757634666502,-1422.61,0.00027671,7]
[384963259,1757634666511,-1234.81,0.00027671,7]
[384963260,1757634666521,-400.0,0.00027671,7]
[384963261,1757634666530,-716.12,0.00027671,7]
[384963262,1757634666539,-400.0,0.00027671,7]
[384963263,1757634666549,-741.01,0.00027671,7]
[384963264,1757634666559,-400.0,0.00027671,7]
[384963265,1757634666568,-400.0,0.00027671,7]
[384963266,1757634666577,-400.0,0.00027671,7]
[384963267,1757634666587,-400.0,0.00027671,7]
[384963268,1757634666597,-1548.27,0.00027671,7]
[384963269,1757634666606,-400.0,0.00027671,7]
[384963270,1757634666615,-621.13,0.00027671,7]
[384963271,1757634666625,-400.0,0.00027671,7]
[384963272,1757634666634,-400.0,0.00027671,7]
[384963273,1757634666643,-814.53,0.00027671,7]
[384963274,1757634666653,-400.0,0.00027671,7]
[384963275,1757634666662,-400.0,0.00027671,7]
[384963276,1757634666671,-896.92,0.00027671,7]
[384963277,1757634666680,-400.0,0.00027671,7]
[384963278,1757634666689,-803.24,0.00027671,7]
[384963279,1757634666698,-533.42,0.00027671,7]
[384963280,1757634666707,-400.0,0.00027671,7]
[384963281,1757634666716,-423.40641382,0.00027671,7]
[384963282,1757634666726,-1030.93,0.00027671,7]
[384963283,1757634666735,-579.91,0.00027671,7]
[384963284,1757634666744,-506.99,0.00027671,7]
[384963285,1757634666754,-151.0,0.00027671,7]
[384963286,1757634666763,-400.0,0.00027671,7]
[384963287,1757634666772,-432.77,0.00027671,7]
[384963288,1757634666781,-856.59,0.00027671,7]
[384963289,1757634666790,-633.39,0.00027671,7]
[384963290,1757634666799,-400.0,0.00027671,7]
[384963291,1757634666808,-630.52,0.00027671,7]
[384963292,1757634666817,-400.0,0.00027671,7]
[384963293,1757634666827,-400.0,0.00027671,7]
[384963294,1757634666836,-151.0,0.00027671,7]
[384963295,1757634666845,-1799.32,0.00027671,7]
[384963296,1757634666854,-400.0,0.00027671,7]
[384963297,1757634666863,-300.0,0.00027671,7]
[384963298,1757634666872,-400.0,0.00027671,7]
[384963299,1757634666881,-1043.44,0.00027671,7]
[384963300,1757634666890,-450.58,0.00027671,7]
[384963301,1757634666899,-400.0,0.00027671,7]
[384963302,1757634666909,-400.0,0.00027671,7]
[384963303,1757634666918,-400.0,0.00027671,7]
[384963304,1757634666927,-1179.97,0.00027671,7]
[384963305,1757634666937,-400.0,0.00027671,7]
[384963306,1757634666946,-716.21,0.00027671,7]
[384963307,1757634666956,-400.0,0.00027671,7]
[384963308,1757634666965,-151.0,0.00027671,7]
[384963309,1757634666974,-743.2,0.00027671,7]
[384963310,1757634666983,-400.0,0.00027671,7]
[384963311,1757634666992,-1185.25,0.00027671,7]
[384963312,1757634667001,-151.0,0.00027671,7]
[384963313,1757634667012,-400.0,0.00027671,7]
[384963314,1757634667021,-445.7,0.00027671,7]
[384963315,1757634667030,-400.0,0.00027671,7]
[384963316,1757634667040,-1138.04,0.00027671,7]
[384963317,1757634667049,-400.0,0.00027671,7]
[384963318,1757634667058,-400.0,0.00027671,7]
[384963319,1757634667067,-400.0,0.00027671,7]
[384963320,1757634667076,-400.0,0.00027671,7]
[384963321,1757634667085,-400.0,0.00027671,7]
[384963322,1757634667095,-400.0,0.00027671,7]
[384963323,1757634667104,-400.0,0.00027671,7]
[384963324,1757634667113,-400.0,0.00027671,7]
[384963325,1757634667122,-402.95558882,0.00027671,7]
[384963326,1757634667132,-400.0,0.00027671,7]
[384963327,1757634667141,-400.0,0.00027671,7]
[384963328,1757634667150,-400.0,0.00027671,7]
[384963329,1757634667160,-604.82,0.00027671,7]
[384963330,1757634667169,-555.12,0.00027671,7]
[384963331,1757634667178,-542.03,0.00027671,7]
[384963332,1757634667187,-882.31,0.00027671,7]
[384963333,1757634667196,-793.36,0.00027671,7]
[384963334,1757634667205,-653.86,0.00027671,7]
[384963335,1757634667214,-400.0,0.00027671,7]
[384963336,1757634667223,-400.0,0.00027671,7]
[384963337,1757634667232,-400.0,0.00027671,7]
[384963338,1757634667241,-151.0,0.00027671,7]
[384963339,1757634667251,-400.0,0.00027671,7]
[384963340,1757634667260,-400.0,0.00027671,7]
[384963341,1757634667269,-400.0,0.00027671,7]
[384963342,1757634667278,-400.0,0.00027671,7]
[384963343,1757634667287,-400.0,0.00027671,7]
[384963344,1757634667301,-400.0,0.00027671,7]
[384963345,1757634667310,-400.0,0.00027671,7]
[384963346,1757634667320,-1033.3,0.00027671,7]
[384963347,1757634667330,-483.88,0.00027671,7]
[384963348,1757634667341,-400.0,0.00027671,7]
[384963349,1757634667350,-400.0,0.00027671,7]
[384963350,1757634667359,-467.52,0.00027671,7]
[384963351,1757634667370,-400.0,0.00027671,7]
[384963352,1757634667380,-400.0,0.00027671,7]
[384963353,1757634667389,-400.0,0.00027671,7]
[384963354,1757634667399,-728.9,0.00027671,7]
[384963355,1757634667408,-400.0,0.00027671,7]
[384963356,1757634667418,-400.0,0.00027671,7]
[384963357,1757634667427,-831.18,0.00027671,7]
[384963358,1757634667436,-505.84,0.00027671,7]
[384963359,1757634667445,-400.0,0.00027671,7]
[384963360,1757634667454,-784.57,0.00027671,7]
[384963361,1757634667464,-400.0,0.00027671,7]
[384963362,1757634667472,-400.0,0.00027671,7]
[384963363,1757634667482,-582.51,0.00027671,7]
[384963364,1757634667491,-735.36,0.00027671,7]
[384963365,1757634667501,-400.0,0.00027671,7]
[384963366,1757634667510,-349.23991702,0.00027671,7]
[384963367,1757634667519,-1376.56,0.00027671,7]
[384963368,1757634667528,-151.0,0.00027671,7]
[384963369,1757634667537,-293.55987,0.00027671,7]
[384963370,1757634667546,-400.0,0.00027671,7]
[384963371,1757634667555,-566.99,0.00027671,7]
[384963372,1757634667564,-685.42,0.00027671,7]
[384963373,1757634667574,-400.44838493,0.00027671,7]
[384963374,1757634667583,-400.0,0.00027671,7]
[384963375,1757634667592,-400.0,0.00027671,7]
[384963376,1757634667601,-1653.06,0.00027671,7]
[384963377,1757634667611,-400.0,0.00027671,7]
[384963378,1757634667620,-300.0,0.00027671,7]
[384963379,1757634667629,-1207.75,0.00027671,7]
[384963380,1757634667638,-400.0,0.00027671,7]
[384963381,1757634667647,-400.0,0.00027671,7]
[384963382,1757634667656,-802.42,0.00027671,7]
[384963383,1757634667666,-400.0,0.00027671,7]
[384963384,1757634667675,-400.0,0.00027671,7]
[384963385,1757634667684,-400.0,0.00027671,7]
[384963386,1757634667693,-400.0,0.00027671,7]
[384963387,1757634667702,-400.0,0.00027671,7]
[384963388,1757634667711,-434.23,0.00027671,7]
[384963389,1757634667720,-400.0,0.00027671,7]
[384963390,1757634667730,-171.553611,0.00027671,7]
[384963391,1757634667739,-171.553611,0.00027671,7]
[384963392,1757634667748,-400.0,0.00027671,7]
[384963393,1757634667758,-400.0,0.00027671,7]
[384963394,1757634667767,-457.91,0.00027671,7]
[384963395,1757634667776,-151.0,0.00027671,7]
[384963396,1757634667785,-725.42,0.00027671,7]
[384963397,1757634667794,-171.553611,0.00027671,7]
[384963398,1757634667803,-152.942513,0.00027671,7]
[384963399,1757634667812,-171.553611,0.00027671,7]
[384963400,1757634667821,-400.0,0.00027671,7]
[384963401,1757634667830,-400.0,0.00027671,7]
[384963402,1757634667839,-400.0,0.00027671,7]
[384963403,1757634667848,-171.553611,0.00027671,7]
[384963404,1757634667857,-171.553611,0.00027671,7]
[384963405,1757634667866,-1380.4,0.00027671,7]
[384963406,1757634667875,-438.0,0.00027671,7]
[384963407,1757634667884,-1022.55,0.00027671,7]
[384963408,1757634667894,-400.0,0.00027671,7]
[384963409,1757634667903,-171.553611,0.00027671,7]
[384963410,1757634667912,-171.553611,0.00027671,7]
[384963411,1757634667921,-400.0,0.00027671,7]
[384963412,1757634667930,-400.0,0.00027671,7]
[384963413,1757634667939,-400.0,0.00027671,7]
[384963414,1757634667948,-400.0,0.00027671,7]
[384963415,1757634667957,-400.0,0.00027671,7]
[384963416,1757634667966,-836.55,0.00027671,7]
[384963417,1757634667976,-400.0,0.00027671,7]
[384963418,1757634667985,-400.0,0.00027671,7]
[384963419,1757634667994,-400.0,0.00027671,7]
[384963420,1757634668003,-445.68,0.00027671,7]
[384963421,1757634668013,-400.0,0.00027671,7]
[384963422,1757634668022,-656.56,0.00027671,7]
[384963423,1757634668031,-151.0,0.00027671,7]
[384963424,1757634668040,-400.0,0.00027671,7]
[384963425,1757634668049,-151.0,0.00027671,7]
[384963426,1757634668059,-545.12190216,0.00027671,7]
[384963427,1757634668068,-400.0,0.00027671,7]
[384963428,1757634668077,-151.0,0.00027671,7]
[384963429,1757634668087,-284.82176,0.00027671,7]
[384963430,1757634668096,-400.0,0.00027671,7]
[384963431,1757634668106,-400.0,0.00027671,7]
[384963432,1757634668115,-402.39619767,0.00027671,7]
[384963433,1757634668125,-730.18,0.00027671,7]
[384963434,1757634668134,-400.0,0.00027671,7]
[384963435,1757634668144,-400.0,0.00027671,7]
[384963436,1757634668153,-400.0,0.00027671,7]
[384963437,1757634668163,-151.0,0.00027671,7]
[384963438,1757634668172,-151.0,0.00027671,7]
[384963439,1757634668181,-400.0,0.00027671,7]
[384963440,1757634668191,-400.0,0.00027671,7]
[384963441,1757634668200,-804.98,0.00027671,7]
[384963442,1757634668210,-151.0,0.00027671,7]
[384963443,1757634668219,-250.5037,0.00027671,7]
[384963444,1757634668228,-151.0,0.00027671,7]
[384963445,1757634668237,-185.0471477,0.00027671,7]
[384963446,1757634668247,-151.0,0.00027671,7]
[384963447,1757634668256,-668.83,0.00027671,7]
[384963448,1757634668265,-804.65,0.00027671,7]
[384963449,1757634668274,-472.82395659,0.00027671,7]
[384963450,1757634668283,-400.0,0.00027671,7]
[384963451,1757634668295,-400.0,0.00027671,7]
[384963452,1757634668304,-400.0,0.00027671,7]
[384963453,1757634668313,-400.0,0.00027671,7]
[384963454,1757634668322,-853.23,0.00027671,7]
[384963455,1757634668332,-400.0,0.00027671,7]
[384963456,1757634668342,-1830.18,0.00027671,7]
[384963457,1757634668351,-400.0,0.00027671,7]
[384963458,1757634668360,-1362.04,0.00027671,7]
[384963459,1757634668370,-690.45,0.00027671,7]
[384963460,1757634668379,-400.0,0.00027671,7]
[384963461,1757634668389,-591.06,0.00027671,7]
[384963462,1757634668398,-151.0,0.00027671,7]
[384963463,1757634668407,-227.516995,0.00027671,7]
[384963464,1757634668417,-430.68,0.00027671,7]
[384963465,1757634668426,-151.0,0.00027671,7]
[384963466,1757634668436,-151.0,0.00027671,7]
[384963467,1757634668448,-151.0,0.00027671,7]
[384963468,1757634668459,-400.0,0.00027671,7]
[384963469,1757634668468,-400.0,0.00027671,7]
[384963470,1757634668477,-787.77,0.00027671,7]
[384963471,1757634668486,-151.0,0.00027671,7]
[384963472,1757634668495,-151.0,0.00027671,7]
[384963473,1757634668505,-274.381635,0.00027671,7]
[384963474,1757634668514,-168.404666,0.00027671,7]
[384963475,1757634668524,-151.0,0.00027671,7]
[384963476,1757634668534,-151.0,0.00027671,7]
[384963477,1757634668544,-151.0,0.00027671,7]
[384963478,1757634668554,-151.0,0.00027671,7]
[384963479,1757634668563,-400.0,0.00027671,7]
[384963480,1757634668573,-298.48333893,0.00027671,7]
[384963481,1757634668583,-477.06,0.00027671,7]
[384963482,1757634668596,-1377.98,0.00027671,7]
[384963483,1757634668606,-151.0,0.00027671,7]
[384963484,1757634668616,-151.0,0.00027671,7]
[384963485,1757634668626,-296.552253,0.00027671,7]
[384963486,1757634668636,-151.0,0.00027671,7]
[384963487,1757634668646,-833.52,0.00027671,7]
[384963488,1757634668656,-400.0,0.00027671,7]
[384963489,1757634668666,-151.0,0.00027671,7]
[384963490,1757634668676,-1532.87,0.00027671,7]
[384963491,1757634668685,-151.0,0.00027671,7]
[384963492,1757634668695,-151.0,0.00027671,7]
[384963493,1757634668705,-400.0,0.00027671,7]
[384963494,1757634668714,-151.0,0.00027671,7]
[384963495,1757634668723,-1802.09,0.00027671,7]
[384963496,1757634668733,-400.0,0.00027671,7]
[384963497,1757634668743,-400.0,0.00027671,7]
[384963498,1757634668753,-400.0,0.00027671,7]
[384963499,1757634668763,-404.0,0.00027671,7]
[384963500,1757634668772,-544.71,0.00027671,7]
[384963501,1757634668782,-400.0,0.00027671,7]
[384963502,1757634668791,-400.0,0.00027671,2]
[384963503,1757634668802,-400.0,0.00027671,7]
[384963504,1757634668812,-551.433028,0.00027671,7]
[384963505,1757634668822,-551.433028,0.00027671,7]
[384963506,1757634668831,-926.87,0.00027671,7]
[384963507,1757634668844,-404.15126428,0.00027671,7]
[384963508,1757634668855,-551.433028,0.00027671,7]
[384963509,1757634668866,-274.905525,0.00027671,7]
[384963510,1757634668875,-551.433028,0.00027671,7]
[384963511,1757634668885,-274.905525,0.00027671,7]
[384963512,1757634668895,-624.26,0.00027671,7]
[384963513,1757634668905,-400.0,0.00027671,7]
[384963514,1757634668916,-401.43777808,0.00027671,7]
[384963515,1757634668926,-400.0,0.00027671,7]
[384963516,1757634668936,-551.433028,0.00027671,7]
[384963517,1757634668946,-274.905525,0.00027671,7]
[384963518,1757634668956,-571.09,0.00027671,7]
[384963519,1757634668966,-560.16,0.00027671,7]
[384963520,1757634668977,-274.905525,0.00027671,7]
[384963521,1757634668987,-551.433028,0.00027671,7]
[384963522,1757634668997,-274.905525,0.00027671,7]
[384963523,1757634669007,-551.433028,0.00027671,7]
[384963524,1757634669017,-791.48,0.00027671,7]
[384963525,1757634669027,-274.905525,0.00027671,7]
[384963526,1757634669040,-551.433028,0.00027671,7]
[384963527,1757634669050,-400.0,0.00027671,7]
[384963528,1757634669061,-1431.29,0.00027671,7]
[384963529,1757634669077,-274.905525,0.00027671,7]
[384963530,1757634669088,-431.58,0.00027671,7]
[384963531,1757634669098,-274.905525,0.00027671,7]